fUSD/lending_fUSD_20250220
["ID","MTS","AMOUNT","RATE_DAILY","PERIOD"]
[353809650,1740065479584,-348.0,0.0001178,2]
[353809651,1740065479593,-252.52,0.0001178,2]
[353809652,1740065479602,-500.0,0.0001178,2]
[353809653,1740065479612,-500.0,0.0001178,2]
[353809654,1740065479622,-500.0,0.0001178,2]
[353809655,1740065479633,-500.0,0.0001178,2]
[353809656,1740065479645,-1034.23,0.00011782,2]
[353809657,1740065479655,-151.399335,0.00011805,2]
[353809658,1740065479665,-151.200114,0.00011805,2]
[353809659,1740065479676,-266.964364,0.00011863,2]
[353809660,1740065479688,-162.079268,0.00011863,2]
[353809661,1740065479698,-365.193117,0.00011863,2]
[353809662,1740065479708,-500.0,0.00011863,2]
[353809663,1740065479719,-378.72,0.00011863,2]
[353809664,1740065479729,-500.0,0.00011863,2]
[353809665,1740065479740,-500.0,0.00011863,2]
[353809666,1740065479750,-195.88,0.00011863,2]
[353809667,1740065479761,-512.62,0.00011863,2]
[353809668,1740065479771,-479.04,0.00011863,2]
[353809669,1740065479783,-435.24,0.00011863,2]
[353809670,1740065479793,-500.0,0.00011863,2]
[353809671,1740065479803,-500.0,0.00011863,2]
[353809672,1740065479813,-500.0,0.00011863,2]
[353809673,1740065479823,-360.96,0.00011863,2]
[353809674,1740065479832,-500.0,0.00011863,2]
[353809675,1740065479841,-630.85,0.00011863,2]
[353809676,1740065479851,-500.0,0.00011863,2]
[353809677,1740065479861,-500.0,0.00011863,2]
[353809678,1740065479870,-500.0,0.00011863,2]
[353809679,1740065479879,-500.0,0.00011863,2]
[353809680,1740065479888,-500.0,0.00011863,2]
[353809681,1740065479898,-500.0,0.00011863,2]
[353809682,1740065479908,-523.68,0.00011863,2]
[353809683,1740065479918,-558.66,0.00011863,2]
[353809684,1740065479928,-500.0,0.00011863,2]
[353809685,1740065479937,-500.0,0.00011863,2]
[353809686,1740065479948,-500.0,0.00011863,2]
[353809687,1740065479959,-500.0,0.00011863,2]
[353809688,1740065479968,-469.56,0.00011863,2]
[353809689,1740065479977,-500.0,0.00011863,2]
[353809690,1740065479987,-1191.32,0.00011863,2]
[353809691,1740065479996,-219.28,0.00011863,2]
[353809692,1740065480005,-290.92,0.00011863,2]
[353809693,1740065480016,-500.0,0.00011863,2]
[353809694,1740065480029,-500.0,0.00011863,2]
[353809695,1740065480039,-500.0,0.00011863,2]
[353809696,1740065480049,-500.0,0.00011863,2]
[353809697,1740065480061,-500.0,0.00011863,2]
[353809698,1740065480071,-500.0,0.00011863,2]
[353809699,1740065480081,-500.0,0.00011863,2]
[353809700,1740065480090,-500.0,0.00011863,2]
[353809701,1740065480101,-500.0,0.00011863,2]
[353809702,1740065480112,-637.32,0.00011863,2]
[353809703,1740065480121,-561.32,0.00011863,2]
[353809704,1740065480131,-500.0,0.00011863,2]
[353809705,1740065480140,-500.0,0.00011863,2]
[353809706,1740065480151,-500.0,0.00011863,2]
[353809707,1740065480161,-500.0,0.00011863,2]
[353809708,1740065480172,-500.0,0.00011863,2]
[353809709,1740065480182,-500.0,0.00011863,2]
[353809710,1740065480192,-500.0,0.00011863,2]
[353809711,1740065480201,-500.0,0.00011863,2]
[353809712,1740065480210,-500.0,0.00011863,2]
[353809713,1740065480219,-500.0,0.00011863,2]
[353809714,1740065480229,-500.0,0.00011863,2]
[353809715,1740065480238,-500.0,0.00011863,2]
[353809716,1740065480247,-623.28,0.00011863,2]
[353809717,1740065480256,-997.07,0.00011863,2]
[353809718,1740065480266,-500.0,0.00011863,2]
[353809719,1740065480275,-500.0,0.00011863,2]
[353809720,1740065480284,-500.0,0.00011863,2]
[353809721,1740065480294,-500.0,0.00011863,2]
[353809722,1740065480303,-500.0,0.00011863,2]
[353809723,1740065480313,-500.0,0.00011863,2]
[353809724,1740065480324,-500.0,0.00011863,2]
[353809725,1740065480334,-500.0,0.00011863,2]
[353809726,1740065480343,-500.0,0.00011863,2]
[353809727,1740065480353,-500.0,0.00011863,2]
[353809728,1740065480364,-500.0,0.00011863,2]
[353809729,1740065480373,-500.0,0.00011863,2]
[353809730,1740065480383,-603.5,0.00011863,2]
[353809731,1740065480397,-500.0,0.00011863,2]
[353809732,1740065480407,-500.0,0.00011863,2]
[353809733,1740065480417,-500.0,0.00011863,2]
[353809734,1740065480427,-500.0,0.00011863,2]
[353809735,1740065480437,-500.0,0.00011863,2]
[353809736,1740065480446,-500.0,0.00011863,2]
[353809737,1740065480456,-159.83,0.00011892,2]
[353809738,1740065480466,-155.15627708,0.000119,2]
[353809739,1740065480476,-1034.23,0.00011919,2]
[353809740,1740065480487,-266.964364,0.00011945,2]
[353809741,1740065480496,-365.193117,0.00011945,2]
[353809742,1740065480506,-216.24,0.00011945,2]
[353809743,1740065480517,-500.0,0.00011945,2]
[353809744,1740065480528,-163.92,0.00011945,2]
[353809745,1740065480538,-512.62,0.00011945,2]
[353809746,1740065480547,-500.0,0.00011945,2]
[353809747,1740065480556,-500.0,0.00011945,2]
[353809748,1740065480566,-500.0,0.00011945,2]
[353809749,1740065480576,-500.0,0.00011945,2]
[353809750,1740065480586,-630.85,0.00011945,2]
[353809751,1740065480596,-500.0,0.00011945,2]
[353809752,1740065480606,-500.0,0.00011945,2]
[353809753,1740065480616,-500.0,0.00011945,2]
[353809754,1740065480626,-500.0,0.00011945,2]
[353809755,1740065480635,-500.0,0.00011945,2]
[353809756,1740065480647,-500.0,0.00011945,2]
[353809757,1740065480656,-523.68,0.00011945,2]
[353809758,1740065480666,-558.66,0.00011945,2]
[353809759,1740065480676,-500.0,0.00011945,2]
[353809760,1740065480686,-363.68,0.00011945,2]
[353809761,1740065480695,-500.0,0.00011945,2]
[353809762,1740065480705,-203.44,0.00011945,2]
[353809763,1740065480715,-500.0,0.00011945,2]
[353809764,1740065480725,-1191.32,0.00011945,2]
[353809765,1740065480735,-500.0,0.00011945,2]
[353809766,1740065480749,-500.0,0.00011945,2]
[353809767,1740065480759,-500.0,0.00011945,2]
[353809768,1740065480769,-500.0,0.00011945,2]
[353809769,1740065480780,-500.0,0.00011945,2]
[353809770,1740065480790,-500.0,0.00011945,2]
[353809771,1740065480801,-500.0,0.00011945,2]
[353809772,1740065480810,-500.0,0.00011945,2]
[353809773,1740065480820,-573.08,0.00011945,2]
[353809774,1740065480831,-500.0,0.00011945,2]
[353809775,1740065480843,-561.32,0.00011945,2]
[353809776,1740065480852,-500.0,0.00011945,2]
[353809777,1740065480862,-500.0,0.00011945,2]
[353809778,1740065480872,-500.0,0.00011945,2]
[353809779,1740065480883,-574.2,0.00011945,2]
[353809780,1740065480894,-500.0,0.00011945,2]
[353809781,1740065480904,-500.0,0.00011945,2]
[353809782,1740065480914,-500.0,0.00011945,2]
[353809783,1740065480925,-500.0,0.00011945,2]
[353809784,1740065480935,-500.0,0.00011945,2]
[353809785,1740065480944,-500.0,0.00011945,2]
[353809786,1740065480954,-500.0,0.00011945,2]
[353809787,1740065480964,-623.28,0.00011945,2]
[353809788,1740065480974,-997.07,0.00011945,2]
[353809789,1740065480984,-500.0,0.00011945,2]
[353809790,1740065480994,-500.0,0.00011945,2]
[353809791,1740065481004,-500.0,0.00011945,2]
[353809792,1740065481014,-290.24,0.00011945,2]
[353809793,1740065481027,-500.0,0.00011945,2]
[353809794,1740065481037,-500.0,0.00011945,2]
[353809795,1740065481047,-500.0,0.00011945,2]
[353809796,1740065481058,-224.0,0.00011945,2]
[353809797,1740065481068,-500.0,0.00011945,2]
[353809798,1740065481079,-181.84,0.00011945,2]
[353809799,1740065481093,-500.0,0.00011945,2]
[353809800,1740065481103,-603.5,0.00011945,2]
[353809801,1740065481112,-500.0,0.00011945,2]
[353809802,1740065481123,-167.68,0.00011945,2]
[353809803,1740065481133,-500.0,0.00011945,2]
[353809804,1740065481145,-500.0,0.00011945,2]
[353809805,1740065481154,-500.0,0.00011945,2]
[353809806,1740065481163,-200.75334027,0.00011959,2]
[353809807,1740065481173,-30035.17907155,0.0001199,2]
[353809808,1740065481183,-306.1729851,0.00012,3]
[353809809,1740065481194,-266.964364,0.00012027,2]
[353809810,1740065481203,-365.193117,0.00012027,2]
[353809811,1740065481214,-500.0,0.00012027,2]
[353809812,1740065481224,-512.62,0.00012027,2]
[353809813,1740065481235,-207.56,0.00012027,2]
[353809814,1740065481245,-500.0,0.00012027,2]
[353809815,1740065481255,-500.0,0.00012027,2]
[353809816,1740065481265,-500.0,0.00012027,2]
[353809817,1740065481275,-630.85,0.00012027,2]
[353809818,1740065481284,-500.0,0.00012027,2]
[353809819,1740065481294,-318.76,0.00012027,2]
[353809820,1740065481303,-500.0,0.00012027,2]
[353809821,1740065481313,-500.0,0.00012027,2]
[353809822,1740065481323,-500.0,0.00012027,2]
[353809823,1740065481333,-500.0,0.00012027,2]
[353809824,1740065481342,-523.68,0.00012027,2]
[353809825,1740065481352,-558.66,0.00012027,2]
[353809826,1740065481363,-500.0,0.00012027,2]
[353809827,1740065481373,-500.0,0.00012027,2]
[353809828,1740065481383,-500.0,0.00012027,2]
[353809829,1740065481396,-1191.32,0.00012027,2]
[353809830,1740065481406,-577.37,0.00012027,2]
[353809831,1740065481416,-500.0,0.00012027,2]
[353809832,1740065481426,-500.0,0.00012027,2]
[353809833,1740065481436,-500.0,0.00012027,2]
[353809834,1740065481447,-500.0,0.00012027,2]
[353809835,1740065481457,-500.0,0.00012027,2]
[353809836,1740065481467,-401.36,0.00012027,2]
[353809837,1740065481476,-500.0,0.00012027,2]
[353809838,1740065481486,-500.0,0.00012027,2]
[353809839,1740065481496,-561.32,0.00012027,2]
[353809840,1740065481506,-500.0,0.00012027,2]
[353809841,1740065481516,-540.12,0.00012027,2]
[353809842,1740065481526,-500.0,0.00012027,2]
[353809843,1740065481535,-500.0,0.00012027,2]
[353809844,1740065481545,-500.0,0.00012027,2]
[353809845,1740065481555,-500.0,0.00012027,2]
[353809846,1740065481565,-512.8,0.00012027,2]
[353809847,1740065481574,-500.0,0.00012027,2]
[353809848,1740065481584,-500.0,0.00012027,2]
[353809849,1740065481593,-500.0,0.00012027,2]
[353809850,1740065481602,-623.28,0.00012027,2]
[353809851,1740065481612,-997.07,0.00012027,2]
[353809852,1740065481622,-500.0,0.00012027,2]
[353809853,1740065481632,-500.0,0.00012027,2]
[353809854,1740065481642,-500.0,0.00012027,2]
[353809855,1740065481654,-500.0,0.00012027,2]
[353809856,1740065481665,-616.12,0.00012027,2]
[353809857,1740065481675,-500.0,0.00012027,2]
[353809858,1740065481684,-500.0,0.00012027,2]
[353809859,1740065481694,-500.0,0.00012027,2]
[353809860,1740065481704,-603.5,0.00012027,2]
[353809861,1740065481714,-500.0,0.00012027,2]
[353809862,1740065481724,-531.0,0.00012027,2]
[353809863,1740065481734,-500.0,0.00012027,2]
[353809864,1740065481743,-500.0,0.00012027,2]
[353809865,1740065481753,-8872.26484474,0.00012033,2]
[353809866,1740065481763,-3982.78657443,0.00012036,2]
[353809867,1740065481773,-1246.68,0.00012054,2]
[353809868,1740065481782,-1034.23,0.00012056,2]
[353809869,1740065481792,-151.399335,0.000121,2]
[353809870,1740065481801,-151.200114,0.000121,2]
[353809871,1740065481811,-266.964364,0.00012109,2]
[353809872,1740065481821,-365.193117,0.00012109,2]
[353809873,1740065481831,-500.0,0.00012109,2]
[353809874,1740065481840,-512.62,0.00012109,2]
[353809875,1740065481850,-500.0,0.00012109,2]
[353809876,1740065481860,-500.0,0.00012109,2]
[353809877,1740065481871,-500.0,0.00012109,2]
[353809878,1740065481881,-630.85,0.00012109,2]
[353809879,1740065481891,-500.0,0.00012109,2]
[353809880,1740065481904,-501.56,0.00012109,2]
[353809881,1740065482048,-344.4,0.00012109,2]
[353809882,1740065482061,-500.0,0.00012109,2]
[353809883,1740065482071,-500.0,0.00012109,2]
[353809884,1740065482081,-523.68,0.00012109,2]
[353809885,1740065482091,-558.66,0.00012109,2]
[353809886,1740065482102,-500.0,0.00012109,2]
[353809887,1740065482112,-500.0,0.00012109,2]
[353809888,1740065482122,-500.0,0.00012109,2]
[353809889,1740065482132,-1191.32,0.00012109,2]
[353809890,1740065482141,-500.0,0.00012109,2]
[353809891,1740065482154,-519.72,0.00012109,2]
[353809892,1740065482164,-500.0,0.00012109,2]
[353809893,1740065482175,-500.0,0.00012109,2]
[353809894,1740065482186,-500.0,0.00012109,2]
[353809895,1740065482195,-297.16,0.00012109,2]
[353809896,1740065482205,-500.0,0.00012109,2]
[353809897,1740065482215,-561.32,0.00012109,2]
[353809898,1740065482225,-500.0,0.00012109,2]
[353809899,1740065482235,-500.0,0.00012109,2]
[353809900,1740065482245,-500.0,0.00012109,2]
[353809901,1740065482254,-500.0,0.00012109,2]
[353809902,1740065482264,-500.0,0.00012109,2]
[353809903,1740065482274,-500.0,0.00012109,2]
[353809904,1740065482283,-500.0,0.00012109,2]
[353809905,1740065482293,-500.0,0.00012109,2]
[353809906,1740065482303,-623.28,0.00012109,2]
[353809907,1740065482313,-997.07,0.00012109,2]
[353809908,1740065482323,-500.0,0.00012109,2]
[353809909,1740065482332,-500.0,0.00012109,2]
[353809910,1740065482342,-500.0,0.00012109,2]
[353809911,1740065482353,-500.0,0.00012109,2]
[353809912,1740065482363,-500.0,0.00012109,2]
[353809913,1740065482374,-647.68,0.00012109,2]
[353809914,1740065482383,-500.0,0.00012109,2]
[353809915,1740065482393,-603.5,0.00012109,2]
[353809916,1740065482404,-500.0,0.00012109,2]
[353809917,1740065482414,-500.0,0.00012109,2]
[353809918,1740065482424,-500.0,0.00012109,2]
[353809919,1740065482433,-466.42939873,0.00012134,2]
[353809920,1740065482442,-266.964364,0.00012191,2]
[353809921,1740065482451,-365.193117,0.00012191,2]
[353809922,1740065482462,-617.44443821,0.00012191,2]
[353809923,1740065482471,-512.62,0.00012191,2]
[353809924,1740065482481,-500.0,0.00012191,2]
[353809925,1740065482490,-500.0,0.00012191,2]
[353809926,1740065482500,-500.0,0.00012191,2]
[353809927,1740065482509,-630.85,0.00012191,2]
[353809928,1740065482518,-238.4,0.00012191,2]
[353809929,1740065482528,-500.0,0.00012191,2]
[353809930,1740065482537,-253.96,0.00012191,2]
[353809931,1740065482547,-523.68,0.00012191,2]
[353809932,1740065482557,-558.66,0.00012191,2]
[353809933,1740065482566,-500.0,0.00012191,2]
[353809934,1740065482576,-500.0,0.00012191,2]
[353809935,1740065482586,-500.0,0.00012191,2]
[353809936,1740065482595,-1191.32,0.00012191,2]
[353809937,1740065482605,-500.0,0.00012191,2]
[353809938,1740065482615,-500.0,0.00012191,2]
[353809939,1740065482625,-500.0,0.00012191,2]
[353809940,1740065482635,-500.0,0.00012191,2]
[353809941,1740065482646,-500.0,0.00012191,2]
[353809942,1740065482656,-561.32,0.00012191,2]
[353809943,1740065482665,-500.0,0.00012191,2]
[353809944,1740065482675,-500.0,0.00012191,2]
[353809945,1740065482684,-500.0,0.00012191,2]
[353809946,1740065482693,-500.0,0.00012191,2]
[353809947,1740065482702,-500.0,0.00012191,2]
[353809948,1740065482712,-500.0,0.00012191,2]
[353809949,1740065482721,-429.4,0.00012191,2]
[353809950,1740065482731,-500.0,0.00012191,2]
[353809951,1740065482741,-623.28,0.00012191,2]
[353809952,1740065482751,-997.07,0.00012191,2]
[353809953,1740065482762,-500.0,0.00012191,2]
[353809954,1740065482771,-500.0,0.00012191,2]
[353809955,1740065482781,-500.0,0.00012191,2]
[353809956,1740065482791,-292.76,0.00012191,2]
[353809957,1740065482801,-500.0,0.00012191,2]
[353809958,1740065482811,-573.36,0.00012191,2]
[353809959,1740065482821,-603.5,0.00012191,2]
[353809960,1740065482831,-500.0,0.00012191,2]
[353809961,1740065482841,-247.08,0.00012191,2]
[353809962,1740065482851,-500.0,0.00012191,2]
[353809963,1740065482860,-1034.23,0.00012193,2]
[353809964,1740065482870,-274.01,0.00012246,2]
[353809965,1740065482880,-1000.0,0.00012267,2]
[353809966,1740065482890,-266.964364,0.00012273,2]
[353809967,1740065482900,-365.193117,0.00012273,2]
[353809968,1740065482910,-512.62,0.00012273,2]
[353809969,1740065482919,-500.0,0.00012273,2]
[353809970,1740065482929,-358.08,0.00012273,2]
[353809971,1740065482938,-500.0,0.00012273,2]
[353809972,1740065482948,-630.85,0.00012273,2]
[353809973,1740065482957,-500.0,0.00012273,2]
[353809974,1740065482967,-523.68,0.00012273,2]
[353809975,1740065482976,-558.66,0.00012273,2]
[353809976,1740065482986,-500.0,0.00012273,2]
[353809977,1740065482996,-500.0,0.00012273,2]
[353809978,1740065483005,-500.0,0.00012273,2]
[353809979,1740065483015,-1191.32,0.00012273,2]
[353809980,1740065483029,-500.0,0.00012273,2]
[353809981,1740065483039,-500.0,0.00012273,2]
[353809982,1740065483048,-500.0,0.00012273,2]
[353809983,1740065483058,-173.08,0.00012273,2]
[353809984,1740065483068,-500.0,0.00012273,2]
[353809985,1740065483077,-561.32,0.00012273,2]
[353809986,1740065483087,-500.0,0.00012273,2]
[353809987,1740065483097,-500.0,0.00012273,2]
[353809988,1740065483107,-554.37,0.00012273,2]
[353809989,1740065483117,-500.0,0.00012273,2]
[353809990,1740065483126,-500.0,0.00012273,2]
[353809991,1740065483136,-500.0,0.00012273,2]
[353809992,1740065483146,-500.0,0.00012273,2]
[353809993,1740065483155,-623.28,0.00012273,2]
[353809994,1740065483165,-997.07,0.00012273,2]
[353809995,1740065483174,-500.0,0.00012273,2]
[353809996,1740065483183,-500.0,0.00012273,2]
[353809997,1740065483192,-500.0,0.00012273,2]
[353809998,1740065483202,-500.0,0.00012273,2]
[353809999,1740065483211,-603.5,0.00012273,2]
[353810000,1740065483221,-500.0,0.00012273,2]
[353810001,1740065483230,-500.0,0.00012273,2]
[353810002,1740065483239,-504.0,0.00012274,2]
[353810003,1740065483249,-150.0,0.00012293,2]
[353810004,1740065483259,-39385.79236526,0.000123,2]
[353810005,1740065483269,-3982.78657443,0.000123,2]
[353810006,1740065483279,-8872.26484474,0.000123,2]
[353810007,1740065483288,-5728.3299073,0.0001232,2]
[353810008,1740065483299,-440.7344995,0.0001232,2]
[353810009,1740065483308,-1407.0909113,0.0001232,2]
[353810010,1740065483318,-528.8814006,0.0001232,2]
[353810011,1740065483328,-1927.6964707,0.0001232,2]
[353810012,1740065483338,-745.51557553,0.0001232,2]
[353810013,1740065483347,-209967.12185524,0.00012325,2]
[353810014,1740065483358,-1446.70562179,0.00012326,2]
[353810015,1740065483368,-1246.68,0.00012328,2]
[353810016,1740065483377,-151.0,0.00012329,2]
[353810017,1740065483387,-173.291597,0.00012329,2]
[353810018,1740065483396,-151.0,0.00012329,2]
[353810019,1740065483406,-151.0,0.00012329,2]
[353810020,1740065483415,-151.0,0.00012329,2]
[353810021,1740065483425,-151.0,0.00012329,2]
[353810022,1740065483434,-153.081895,0.00012329,2]
[353810023,1740065483443,-151.973551,0.00012329,2]
[353810024,1740065483452,-151.0,0.00012329,2]
[353810025,1740065483461,-151.973551,0.00012329,2]
[353810026,1740065483471,-151.0,0.00012329,2]
[353810027,1740065483480,-151.973551,0.00012329,2]
[353810028,1740065483489,-151.973551,0.00012329,2]
[353810029,1740065483499,-151.973551,0.00012329,2]
[353810030,1740065483508,-151.973551,0.00012329,2]
[353810031,1740065483516,-151.973551,0.00012329,2]
[353810032,1740065483526,-151.973551,0.00012329,2]
[353810033,1740065483535,-151.973551,0.00012329,2]
[353810034,1740065483545,-151.973551,0.00012329,2]
[353810035,1740065483554,-151.973551,0.00012329,2]
[353810036,1740065483564,-151.973551,0.00012329,2]
[353810037,1740065483574,-151.973551,0.00012329,2]
[353810038,1740065483583,-151.973551,0.00012329,2]
[353810039,1740065483592,-151.643701,0.00012329,2]
[353810040,1740065483601,-151.973551,0.00012329,2]
[353810041,1740065483611,-151.973551,0.00012329,2]
[353810042,1740065483620,-151.0,0.00012329,2]
[353810043,1740065483630,-174.343491,0.00012329,2]
[353810044,1740065483639,-152.899572,0.00012329,2]
[353810045,1740065483649,-161.495028,0.00012329,2]
[353810046,1740065483660,-151.0,0.00012329,2]
[353810047,1740065483670,-151.0,0.00012329,2]
[353810048,1740065483679,-151.0,0.00012329,2]
[353810049,1740065483689,-158.981471,0.00012329,2]
[353810050,1740065483699,-151.0,0.00012329,2]
[353810051,1740065483708,-151.0,0.00012329,2]
[353810052,1740065483718,-151.0,0.00012329,2]
[353810053,1740065483728,-151.0,0.00012329,2]
[353810054,1740065483737,-151.0,0.00012329,2]
[353810055,1740065483748,-160.303357,0.00012329,2]
[353810056,1740065483758,-261.32894,0.00012329,2]
[353810057,1740065483770,-261.32894,0.00012329,2]
[353810058,1740065483779,-261.32894,0.00012329,2]
[353810059,1740065483789,-261.32894,0.00012329,2]
[353810060,1740065483799,-261.32894,0.00012329,2]
[353810061,1740065483809,-261.32894,0.00012329,2]
[353810062,1740065483819,-261.32894,0.00012329,2]
[353810063,1740065483829,-261.32894,0.00012329,2]
[353810064,1740065483839,-261.32894,0.00012329,2]
[353810065,1740065483848,-261.32894,0.00012329,2]
[353810066,1740065483858,-261.32894,0.00012329,2]
[353810067,1740065483867,-261.32894,0.00012329,2]
[353810068,1740065483877,-261.32894,0.00012329,2]
[353810069,1740065483886,-261.32894,0.00012329,2]
[353810070,1740065483896,-261.32894,0.00012329,2]
[353810071,1740065483906,-261.32894,0.00012329,2]
[353810072,1740065483915,-261.32894,0.00012329,2]
[353810073,1740065483925,-261.32894,0.00012329,2]
[353810074,1740065483935,-261.32894,0.00012329,2]
[353810075,1740065483944,-261.32894,0.00012329,2]
[353810076,1740065483954,-151.0,0.00012329,2]
[353810077,1740065483964,-151.0,0.00012329,2]
[353810078,1740065483973,-151.0,0.00012329,2]
[353810079,1740065483983,-151.0,0.00012329,2]
[353810080,1740065483993,-151.0,0.00012329,2]
[353810081,1740065484003,-151.0,0.00012329,2]
[353810082,1740065484012,-151.0,0.00012329,2]
[353810083,1740065484025,-181.84664,0.00012329,2]
[353810084,1740065484034,-190.263364,0.00012329,2]
[353810085,1740065484044,-190.263364,0.00012329,2]
[353810086,1740065484055,-190.263364,0.00012329,2]
[353810087,1740065484064,-190.263364,0.00012329,2]
[353810088,1740065484074,-190.263364,0.00012329,2]
[353810089,1740065484083,-190.263364,0.00012329,2]
[353810090,1740065484092,-190.263364,0.00012329,2]
[353810091,1740065484102,-190.263364,0.00012329,2]
[353810092,1740065484112,-190.263364,0.00012329,2]
[353810093,1740065484123,-190.263364,0.00012329,2]
[353810094,1740065484132,-190.263364,0.00012329,2]
[353810095,1740065484142,-190.263364,0.00012329,2]
[353810096,1740065484153,-190.263364,0.00012329,2]
[353810097,1740065484163,-190.263364,0.00012329,2]
[353810098,1740065484172,-190.263364,0.00012329,2]
[353810099,1740065484182,-190.263364,0.00012329,2]
[353810100,1740065484191,-190.263364,0.00012329,2]
[353810101,1740065484201,-190.263364,0.00012329,2]
[353810102,1740065484211,-190.263364,0.00012329,2]
[353810103,1740065484220,-190.263358,0.00012329,2]
[353810104,1740065484230,-152.090166,0.00012329,2]
[353810105,1740065484240,-151.0,0.00012329,2]
[353810106,1740065484250,-151.0,0.00012329,2]
[353810107,1740065484260,-151.0,0.00012329,2]
[353810108,1740065484269,-151.0,0.00012329,2]
[353810109,1740065484278,-151.0,0.00012329,2]
[353810110,1740065484395,-151.0,0.00012329,2]
[353810111,1740065484406,-151.0,0.00012329,2]
[353810112,1740065484415,-151.0,0.00012329,2]
[353810113,1740065484425,-151.0,0.00012329,2]
[353810114,1740065484434,-151.0,0.00012329,2]
[353810115,1740065484443,-151.0,0.00012329,2]
[353810116,1740065484452,-258.762269,0.00012329,2]
[353810117,1740065484462,-151.0,0.00012329,2]
[353810118,1740065484471,-151.491397,0.00012329,2]
[353810119,1740065484481,-153.4673,0.00012329,2]
[353810120,1740065484490,-151.0,0.00012329,2]
[353810121,1740065484499,-151.0,0.00012329,2]
[353810122,1740065484509,-151.0,0.00012329,2]
[353810123,1740065484518,-177.698185,0.00012329,2]
[353810124,1740065484528,-182.252415,0.00012329,2]
[353810125,1740065484538,-152.356982,0.00012329,2]
[353810126,1740065484547,-151.0,0.00012329,2]
[353810127,1740065484556,-151.0,0.00012329,2]
[353810128,1740065484564,-151.0,0.00012329,2]
[353810129,1740065484574,-151.0,0.00012329,2]
[353810130,1740065484583,-151.0,0.00012329,2]
[353810131,1740065484592,-224.190882,0.00012329,2]
[353810132,1740065484601,-1034.23,0.0001233,2]
[353810133,1740065484610,-17117.00041981,0.0001233,2]
[353810134,1740065484619,-10563.36937905,0.0001233,2]
[353810135,1740065484847,-223700.15699055,0.0001233,2]
[353810136,1740065484859,-264.208,0.0001233,2]
[353810137,1740065484871,-277.51890066,0.0001233,2]
[353810138,1740065500458,681.0,0.00013918,30]
[353810139,1740066130302,522.59,8.531e-05,2]
[353810141,1740066395706,-150.0,0.00010267,2]
[353810142,1740066395731,-150.0,0.00010298,2]
[353810143,1740066395753,-161.93,0.00010481,2]
[353810144,1740066395775,-930.2408211,0.00010531,2]
[353810145,1740066395796,-200.0,0.00010545,2]
[353810146,1740066395818,-150.0,0.00010712,2]
[353810147,1740066395839,-30000.0,0.00010729,2]
[353810148,1740066395863,-150.0,0.00010743,2]
[353810149,1740066395887,-150.0,0.00010746,2]
[353810150,1740066395911,-522.59,0.00010795,2]